[Event "Titled Tuesday Blitz May 25 2021"]
[White "Babiy, Olga"]
[Black "Annaberdiyev, Babageldi"]
[WhiteFideId "14117258"]
[BlackFideId "14000385"]
[WhiteElo "2213"]
[BlackElo "2332"]
[Result "0-1"]
[Round "03"]
[TimeControl "180+1"]
[Date "2021.05.25"]
[WhiteClock "0:00:01"]
[BlackClock "0:00:37"]

1. d4 {[%clk 0:03:00]}  Nf6 {[%clk 0:02:58]} 2. Nf3 {[%clk 0:03:01]}  g6 {[%clk 0:02:57]} 3. Nbd2 {[%clk 0:03:01]}  Bg7 {[%clk 0:02:56]} 4. e4 {[%clk 0:03:00]}  d5 {[%clk 0:02:56]} 5. exd5 {[%clk 0:02:42]}  Nxd5 {[%clk 0:02:52]} 6. c4 {[%clk 0:02:42]}  Nb6 {[%clk 0:02:49]} 7. Nb3 {[%clk 0:02:23]}  O-O {[%clk 0:02:49]} 8. Be3 {[%clk 0:02:23]}  Nc6 {[%clk 0:02:46]} 9. Be2 {[%clk 0:02:12]}  e5 {[%clk 0:02:45]} 10. d5 {[%clk 0:02:13]}  Ne7 {[%clk 0:02:44]} 11. Qd2 {[%clk 0:01:41]}  c6 {[%clk 0:02:34]} 12. d6 {[%clk 0:01:28]}  Nf5 {[%clk 0:02:32]} 13. c5 {[%clk 0:01:27]}  Nd5 {[%clk 0:02:29]} 14. Bg5 {[%clk 0:01:02]}  f6 {[%clk 0:02:29]} 15. Be3 {[%clk 0:00:46]}  Nfxe3 {[%clk 0:02:28]} 16. fxe3 {[%clk 0:00:47]}  Bh6 {[%clk 0:02:29]} 17. Bc4 {[%clk 0:00:47]}  Be6 {[%clk 0:02:23]} 18. Bxd5 {[%clk 0:00:47]}  Bxd5 {[%clk 0:02:16]} 19. O-O {[%clk 0:00:47]}  b6 {[%clk 0:02:14]} 20. Qc3 {[%clk 0:00:32]}  bxc5 {[%clk 0:02:11]} 21. Qxc5 {[%clk 0:00:33]}  Rf7 {[%clk 0:02:06]} 22. Rfe1 {[%clk 0:00:29]}  Rd7 {[%clk 0:01:57]} 23. e4 {[%clk 0:00:18]}  Be6 {[%clk 0:01:53]} 24. Rad1 {[%clk 0:00:16]}  Bf8 {[%clk 0:01:52]} 25. Qxc6 {[%clk 0:00:16]}  Rc8 {[%clk 0:01:40]} 26. Qa6 {[%clk 0:00:16]}  Rxd6 {[%clk 0:01:36]} 27. Rxd6 {[%clk 0:00:15]}  Qxd6 {[%clk 0:01:37]} 28. Qxa7 {[%clk 0:00:09]}  Rc2 {[%clk 0:01:31]} 29. Kh1 {[%clk 0:00:09]}  Bf7 {[%clk 0:01:17]} 30. h3 {[%clk 0:00:09]}  Bh6 {[%clk 0:01:13]} 31. Qa8+ {[%clk 0:00:09]}  Kg7 {[%clk 0:01:11]} 32. Qa7 {[%clk 0:00:09]}  Bf4 {[%clk 0:00:55]} 33. Rf1 {[%clk 0:00:07]}  Qd3 {[%clk 0:00:48]} 34. Re1 {[%clk 0:00:07]}  Bg3 {[%clk 0:00:46]} 35. Rg1 {[%clk 0:00:07]}  Qxf3 {[%clk 0:00:43]} 36. Na1 {[%clk 0:00:04]}  Rf2 {[%clk 0:00:37]} 37. h4 {[%clk 0:00:01]}  Qg4 {[%clk 0:00:37]} 0-1


[Site "https://www.chess.com"]

[Event "Titled Tuesday Blitz May 25 2021"]
[White "Benkovic, Petar"]
[Black "Rozen, Eytan"]
[WhiteFideId "922641"]
[BlackFideId "2816750"]
[WhiteElo "2416"]
[BlackElo "1963"]
[Result "1-0"]
[Round "03"]
[TimeControl "180+1"]
[Date "2021.05.25"]
[WhiteClock "0:00:10"]
[BlackClock "0:00:08"]

1. Nf3 {[%clk 0:03:00]}  Nf6 {[%clk 0:02:57]} 2. c4 {[%clk 0:02:59]}  b6 {[%clk 0:02:56]} 3. g3 {[%clk 0:02:59]}  Bb7 {[%clk 0:02:56]} 4. Bg2 {[%clk 0:02:59]}  g6 {[%clk 0:02:55]} 5. b3 {[%clk 0:02:58]}  Bg7 {[%clk 0:02:55]} 6. Bb2 {[%clk 0:02:58]}  O-O {[%clk 0:02:55]} 7. O-O {[%clk 0:02:58]}  d6 {[%clk 0:02:55]} 8. d4 {[%clk 0:02:57]}  Nbd7 {[%clk 0:02:49]} 9. Nc3 {[%clk 0:02:54]}  Ne4 {[%clk 0:02:48]} 10. Rc1 {[%clk 0:02:51]}  Nxc3 {[%clk 0:02:46]} 11. Bxc3 {[%clk 0:02:50]}  Be4 {[%clk 0:02:46]} 12. d5 {[%clk 0:02:43]}  e6 {[%clk 0:02:20]} 13. Bxg7 {[%clk 0:02:38]}  Kxg7 {[%clk 0:02:21]} 14. dxe6 {[%clk 0:02:16]}  fxe6 {[%clk 0:02:13]} 15. Nd4 {[%clk 0:02:10]}  Bf5 {[%clk 0:02:03]} 16. e4 {[%clk 0:01:53]}  c5 {[%clk 0:01:59]} 17. exf5 {[%clk 0:01:31]}  cxd4 {[%clk 0:01:57]} 18. Bxa8 {[%clk 0:01:29]}  Qxa8 {[%clk 0:01:53]} 19. Qxd4+ {[%clk 0:01:28]}  Kg8 {[%clk 0:01:46]} 20. Qxd6 {[%clk 0:01:26]}  Nc5 {[%clk 0:01:38]} 21. b4 {[%clk 0:01:17]}  Ne4 {[%clk 0:01:30]} 22. Qxe6+ {[%clk 0:01:15]}  Kg7 {[%clk 0:01:27]} 23. Qe5+ {[%clk 0:00:48]}  Rf6 {[%clk 0:01:14]} 24. fxg6 {[%clk 0:00:43]}  Nd2 {[%clk 0:01:12]} 25. Qe7+ {[%clk 0:00:36]}  Kxg6 {[%clk 0:01:10]} 26. f4 {[%clk 0:00:32]}  Nf3+ {[%clk 0:00:36]} 27. Rxf3 {[%clk 0:00:30]}  Qxf3 {[%clk 0:00:37]} 28. Rf1 {[%clk 0:00:30]}  Qd3 {[%clk 0:00:34]} 29. Qe8+ {[%clk 0:00:26]}  Kh6 {[%clk 0:00:29]} 30. Qe5 {[%clk 0:00:17]}  Rf5 {[%clk 0:00:29]} 31. Qe6+ {[%clk 0:00:15]}  Kh5 {[%clk 0:00:30]} 32. Re1 {[%clk 0:00:12]}  a5 {[%clk 0:00:23]} 33. Qe2+ {[%clk 0:00:10]}  Qxe2 {[%clk 0:00:22]} 34. Rxe2 {[%clk 0:00:11]}  Kg4 {[%clk 0:00:18]} 35. Kg2 {[%clk 0:00:10]}  Rf6 {[%clk 0:00:08]} 36. Re5 {[%clk 0:00:10]} 1-0


[Site "https://www.chess.com"]

[Event "Titled Tuesday Blitz May 25 2021"]
[White "Chernomordik, Pavel"]
[Black "Stearman, Josiah"]
[WhiteFideId "2804530"]
[BlackFideId "2062496"]
[WhiteElo "2299"]
[BlackElo "2384"]
[Result "1-0"]
[Round "03"]
[TimeControl "180+1"]
[Date "2021.05.25"]
[WhiteClock "0:00:25"]
[BlackClock "0:00:03"]

1. e4 {[%clk 0:03:00]}  c5 {[%clk 0:02:56]} 2. Nc3 {[%clk 0:03:00]}  Nc6 {[%clk 0:02:56]} 3. Bb5 {[%clk 0:02:59]}  Nd4 {[%clk 0:02:52]} 4. Bc4 {[%clk 0:02:59]}  e6 {[%clk 0:02:48]} 5. Nge2 {[%clk 0:02:58]}  a6 {[%clk 0:02:34]} 6. a4 {[%clk 0:02:58]}  Be7 {[%clk 0:02:27]} 7. d3 {[%clk 0:02:48]}  Nf6 {[%clk 0:02:26]} 8. e5 {[%clk 0:02:44]}  Ng8 {[%clk 0:02:22]} 9. Nxd4 {[%clk 0:02:37]}  cxd4 {[%clk 0:02:23]} 10. Ne4 {[%clk 0:02:37]}  b6 {[%clk 0:02:16]} 11. Qg4 {[%clk 0:02:34]}  Kf8 {[%clk 0:02:01]} 12. O-O {[%clk 0:02:25]}  Bb7 {[%clk 0:02:01]} 13. Nd6 {[%clk 0:02:20]}  Bxd6 {[%clk 0:01:57]} 14. exd6 {[%clk 0:02:19]}  Nf6 {[%clk 0:01:58]} 15. Qxd4 {[%clk 0:02:18]}  h6 {[%clk 0:01:52]} 16. Be3 {[%clk 0:02:09]}  Ne8 {[%clk 0:01:27]} 17. Qxb6 {[%clk 0:01:59]}  Qxb6 {[%clk 0:01:19]} 18. Bxb6 {[%clk 0:01:59]}  Nxd6 {[%clk 0:01:19]} 19. Bc5 {[%clk 0:01:58]}  Ke7 {[%clk 0:01:20]} 20. b4 {[%clk 0:01:39]}  Rhc8 {[%clk 0:01:19]} 21. a5 {[%clk 0:01:37]}  Rc6 {[%clk 0:01:13]} 22. Bb3 {[%clk 0:01:36]}  Ke8 {[%clk 0:01:09]} 23. Ba4 {[%clk 0:01:35]}  Nb5 {[%clk 0:01:02]} 24. c4 {[%clk 0:01:35]}  Rxc5 {[%clk 0:00:58]} 25. bxc5 {[%clk 0:01:31]}  Nd4 {[%clk 0:00:59]} 26. Rab1 {[%clk 0:01:28]}  Ra7 {[%clk 0:00:51]} 27. Rfe1 {[%clk 0:01:24]}  Kd8 {[%clk 0:00:46]} 28. f3 {[%clk 0:01:21]}  Kc7 {[%clk 0:00:46]} 29. Kf2 {[%clk 0:01:20]}  f6 {[%clk 0:00:42]} 30. Rb6 {[%clk 0:01:10]}  e5 {[%clk 0:00:41]} 31. Reb1 {[%clk 0:01:05]}  Ne6 {[%clk 0:00:41]} 32. Bxd7 {[%clk 0:00:55]}  Nxc5 {[%clk 0:00:41]} 33. Bf5 {[%clk 0:00:55]}  Ra8 {[%clk 0:00:42]} 34. Ke3 {[%clk 0:00:52]}  Rd8 {[%clk 0:00:41]} 35. Rd1 {[%clk 0:00:44]}  Rd4 {[%clk 0:00:36]} 36. Rbb1 {[%clk 0:00:43]}  Bc6 {[%clk 0:00:31]} 37. Be4 {[%clk 0:00:41]}  Ba4 {[%clk 0:00:27]} 38. Rd2 {[%clk 0:00:36]}  Bd7 {[%clk 0:00:27]} 39. g4 {[%clk 0:00:35]}  h5 {[%clk 0:00:26]} 40. h3 {[%clk 0:00:34]}  hxg4 {[%clk 0:00:25]} 41. hxg4 {[%clk 0:00:34]}  Be6 {[%clk 0:00:17]} 42. Rh1 {[%clk 0:00:32]}  Nb3 {[%clk 0:00:13]} 43. Rb2 {[%clk 0:00:30]}  Nxa5 {[%clk 0:00:11]} 44. Ra1 {[%clk 0:00:29]}  Nc6 {[%clk 0:00:03]} 45. Bxc6 {[%clk 0:00:26]}  Bd7 {[%clk 0:00:03]} 46. Bxd7 {[%clk 0:00:25]} 1-0


[Site "https://www.chess.com"]

[Event "Titled Tuesday Blitz May 25 2021"]
[White "Davtyan, David Arm."]
[Black "Urazayev, Arystanbek"]
[WhiteFideId "13310046"]
[BlackFideId "13709810"]
[WhiteElo "2028"]
[BlackElo "2321"]
[Result "0-1"]
[Round "03"]
[TimeControl "180+1"]
[Date "2021.05.25"]
[WhiteClock "0:00:02"]
[BlackClock "0:01:25"]

1. Nf3 {[%clk 0:01:25]}  c5 {[%clk 0:02:58]} 2. g3 {[%clk 0:01:25]}  b6 {[%clk 0:02:58]} 3. Bg2 {[%clk 0:01:25]}  Bb7 {[%clk 0:02:59]} 4. O-O {[%clk 0:01:26]}  Nf6 {[%clk 0:03:00]} 5. c4 {[%clk 0:01:27]}  e6 {[%clk 0:03:00]} 6. Nc3 {[%clk 0:01:27]}  Be7 {[%clk 0:03:00]} 7. d4 {[%clk 0:01:26]}  cxd4 {[%clk 0:03:00]} 8. Qxd4 {[%clk 0:01:27]}  Nc6 {[%clk 0:03:00]} 9. Qd3 {[%clk 0:01:27]}  O-O {[%clk 0:03:01]} 10. b3 {[%clk 0:01:27]}  d5 {[%clk 0:03:01]} 11. cxd5 {[%clk 0:01:27]}  Nb4 {[%clk 0:02:58]} 12. Qd1 {[%clk 0:01:27]}  Nbxd5 {[%clk 0:02:58]} 13. Bb2 {[%clk 0:01:27]}  Nxc3 {[%clk 0:02:56]} 14. Bxc3 {[%clk 0:01:28]}  Rc8 {[%clk 0:02:54]} 15. Bd4 {[%clk 0:01:24]}  Nd5 {[%clk 0:02:47]} 16. Ne5 {[%clk 0:01:16]}  Bf6 {[%clk 0:02:45]} 17. e3 {[%clk 0:01:15]}  Nc3 {[%clk 0:02:23]} 18. Bxc3 {[%clk 0:00:35]}  Bxg2 {[%clk 0:02:22]} 19. Kxg2 {[%clk 0:00:35]}  Rxc3 {[%clk 0:02:22]} 20. Ng4 {[%clk 0:00:28]}  Be7 {[%clk 0:02:14]} 21. Qxd8 {[%clk 0:00:28]}  Rxd8 {[%clk 0:02:14]} 22. Rad1 {[%clk 0:00:28]}  Rxd1 {[%clk 0:01:49]} 23. Rxd1 {[%clk 0:00:28]}  f6 {[%clk 0:01:49]} 24. e4 {[%clk 0:00:20]}  Rc2 {[%clk 0:01:45]} 25. Rd7 {[%clk 0:00:20]}  Bc5 {[%clk 0:01:45]} 26. Rd8+ {[%clk 0:00:08]}  Kf7 {[%clk 0:01:45]} 27. Rd7+ {[%clk 0:00:09]}  Kf8 {[%clk 0:01:44]} 28. e5 {[%clk 0:00:08]}  h5 {[%clk 0:01:44]} 29. Nxf6 {[%clk 0:00:04]}  gxf6 {[%clk 0:01:43]} 30. exf6 {[%clk 0:00:05]}  Rxf2+ {[%clk 0:01:44]} 31. Kh3 {[%clk 0:00:06]}  Rxa2 {[%clk 0:01:44]} 32. Kh4 {[%clk 0:00:04]}  Rxh2+ {[%clk 0:01:36]} 33. Kg5 {[%clk 0:00:04]}  Rg2 {[%clk 0:01:37]} 34. Rd8+ {[%clk 0:00:04]}  Kf7 {[%clk 0:01:37]} 35. Rd7+ {[%clk 0:00:04]}  Ke8 {[%clk 0:01:38]} 36. Rxa7 {[%clk 0:00:03]}  Rxg3+ {[%clk 0:01:38]} 37. Kxh5 {[%clk 0:00:03]}  Rxb3 {[%clk 0:01:37]} 38. Kg6 {[%clk 0:00:02]}  Rg3+ {[%clk 0:01:37]} 39. Kh5 {[%clk 0:00:03]}  e5 {[%clk 0:01:34]} 40. Ra2 {[%clk 0:00:01]}  Kf7 {[%clk 0:01:32]} 41. Re2 {[%clk 0:00:01]}  Kxf6 {[%clk 0:01:31]} 42. Re4 {[%clk 0:00:02]}  Kf5 {[%clk 0:01:28]} 43. Ra4 {[%clk 0:00:02]}  e4 {[%clk 0:01:28]} 44. Kh4 {[%clk 0:00:02]}  Rf3 {[%clk 0:01:25]} 0-1


[Site "https://www.chess.com"]

[Event "Titled Tuesday Blitz May 25 2021"]
[White "Degtiarev, Evgeny"]
[Black "Csonka, Balazs"]
[WhiteFideId "4149610"]
[BlackFideId "742910"]
[WhiteElo "2218"]
[BlackElo "2404"]
[Result "0-1"]
[Round "03"]
[TimeControl "180+1"]
[Date "2021.05.25"]
[WhiteClock "0:00:07"]
[BlackClock "0:00:22"]

1. d4 {[%clk 0:02:23]}  Nf6 {[%clk 0:02:58]} 2. c4 {[%clk 0:02:24]}  e6 {[%clk 0:02:58]} 3. Nc3 {[%clk 0:02:24]}  Bb4 {[%clk 0:02:58]} 4. e3 {[%clk 0:02:25]}  O-O {[%clk 0:02:57]} 5. Ne2 {[%clk 0:02:22]}  d5 {[%clk 0:02:50]} 6. cxd5 {[%clk 0:02:20]}  exd5 {[%clk 0:02:49]} 7. g3 {[%clk 0:02:21]}  c6 {[%clk 0:02:47]} 8. Bg2 {[%clk 0:02:21]}  Re8 {[%clk 0:02:43]} 9. O-O {[%clk 0:02:21]}  a5 {[%clk 0:02:37]} 10. a3 {[%clk 0:02:20]}  Bd6 {[%clk 0:02:35]} 11. Bd2 {[%clk 0:02:03]}  Bf5 {[%clk 0:02:29]} 12. Rc1 {[%clk 0:02:02]}  Nbd7 {[%clk 0:02:26]} 13. Nf4 {[%clk 0:01:47]}  Bxf4 {[%clk 0:02:03]} 14. exf4 {[%clk 0:01:48]}  Qb6 {[%clk 0:01:49]} 15. Na4 {[%clk 0:00:52]}  Qxd4 {[%clk 0:01:41]} 16. Be3 {[%clk 0:00:51]}  Qxd1 {[%clk 0:01:39]} 17. Rfxd1 {[%clk 0:00:52]}  h5 {[%clk 0:01:06]} 18. Nb6 {[%clk 0:00:12]}  Nxb6 {[%clk 0:01:01]} 19. Bxb6 {[%clk 0:00:13]}  a4 {[%clk 0:00:50]} 20. Rd4 {[%clk 0:00:11]}  Nd7 {[%clk 0:00:35]} 21. Bc7 {[%clk 0:00:10]}  Rac8 {[%clk 0:00:24]} 22. Bd6 {[%clk 0:00:10]}  Re6 {[%clk 0:00:24]} 23. Bc5 {[%clk 0:00:06]}  Nxc5 {[%clk 0:00:22]} 24. Rxc5 {[%clk 0:00:07]}  Re1+ {[%clk 0:00:22]} 0-1


[Site "https://www.chess.com"]

[Event "Titled Tuesday Blitz May 25 2021"]
[White "Demidov, Mikhail"]
[Black "Spitzl, Vinzent"]
[WhiteFideId "4197143"]
[BlackFideId "12901253"]
[WhiteElo "2583"]
[BlackElo "2192"]
[Result "1-0"]
[Round "03"]
[TimeControl "180+1"]
[Date "2021.05.25"]
[WhiteClock "0:01:06"]
[BlackClock "0:00:02"]

1. e4 {[%clk 0:03:00]}  c6 {[%clk 0:02:57]} 2. d4 {[%clk 0:03:00]}  d5 {[%clk 0:02:57]} 3. Nc3 {[%clk 0:03:01]}  dxe4 {[%clk 0:02:57]} 4. Nxe4 {[%clk 0:03:01]}  Nf6 {[%clk 0:02:58]} 5. Nxf6+ {[%clk 0:03:01]}  exf6 {[%clk 0:02:59]} 6. Bc4 {[%clk 0:03:00]}  Bd6 {[%clk 0:02:59]} 7. Qe2+ {[%clk 0:03:00]}  Qe7 {[%clk 0:02:58]} 8. c3 {[%clk 0:03:01]}  Be6 {[%clk 0:02:51]} 9. Bxe6 {[%clk 0:03:00]}  Qxe6 {[%clk 0:02:51]} 10. Nf3 {[%clk 0:02:50]}  Nd7 {[%clk 0:02:46]} 11. Be3 {[%clk 0:02:50]}  Nb6 {[%clk 0:02:45]} 12. O-O {[%clk 0:02:49]}  O-O {[%clk 0:02:44]} 13. Rfe1 {[%clk 0:02:48]}  Rfe8 {[%clk 0:02:38]} 14. Qd3 {[%clk 0:02:48]}  Qc4 {[%clk 0:02:37]} 15. Qc2 {[%clk 0:02:44]}  Nd5 {[%clk 0:02:32]} 16. a3 {[%clk 0:02:38]}  Nxe3 {[%clk 0:02:21]} 17. Rxe3 {[%clk 0:02:37]}  Rxe3 {[%clk 0:02:16]} 18. fxe3 {[%clk 0:02:38]}  Re8 {[%clk 0:02:03]} 19. Re1 {[%clk 0:02:38]}  a5 {[%clk 0:01:49]} 20. Qe2 {[%clk 0:02:31]}  Qxe2 {[%clk 0:01:45]} 21. Rxe2 {[%clk 0:02:31]}  f5 {[%clk 0:01:46]} 22. Kf2 {[%clk 0:02:31]}  g6 {[%clk 0:01:43]} 23. g3 {[%clk 0:02:31]}  Kg7 {[%clk 0:01:41]} 24. Ke1 {[%clk 0:02:31]}  b5 {[%clk 0:01:36]} 25. Kd2 {[%clk 0:02:31]}  Kf6 {[%clk 0:01:33]} 26. Kd3 {[%clk 0:02:31]}  h5 {[%clk 0:01:31]} 27. Re1 {[%clk 0:02:30]}  g5 {[%clk 0:01:31]} 28. Rc1 {[%clk 0:02:30]}  h4 {[%clk 0:01:25]} 29. Rg1 {[%clk 0:02:17]}  hxg3 {[%clk 0:01:23]} 30. hxg3 {[%clk 0:02:18]}  g4 {[%clk 0:01:21]} 31. Nd2 {[%clk 0:02:12]}  Rh8 {[%clk 0:01:15]} 32. e4 {[%clk 0:02:12]}  fxe4+ {[%clk 0:01:12]} 33. Nxe4+ {[%clk 0:02:12]}  Ke6 {[%clk 0:01:12]} 34. Nxd6 {[%clk 0:01:58]}  Kxd6 {[%clk 0:01:13]} 35. Ke4 {[%clk 0:01:59]}  Rh2 {[%clk 0:01:06]} 36. Rf1 {[%clk 0:01:54]}  Rxb2 {[%clk 0:01:02]} 37. Rf6+ {[%clk 0:01:53]}  Kc7 {[%clk 0:00:54]} 38. Rxf7+ {[%clk 0:01:49]}  Kb6 {[%clk 0:00:54]} 39. Rf6 {[%clk 0:01:49]}  Rb3 {[%clk 0:00:49]} 40. Kd3 {[%clk 0:01:41]}  b4 {[%clk 0:00:46]} 41. axb4 {[%clk 0:01:40]}  axb4 {[%clk 0:00:47]} 42. Kc4 {[%clk 0:01:37]}  Rxc3+ {[%clk 0:00:47]} 43. Kxb4 {[%clk 0:01:38]}  Rxg3 {[%clk 0:00:47]} 44. d5 {[%clk 0:01:38]}  Rg1 {[%clk 0:00:41]} 45. Rxc6+ {[%clk 0:01:37]}  Kb7 {[%clk 0:00:41]} 46. Rg6 {[%clk 0:01:37]}  g3 {[%clk 0:00:32]} 47. Kc5 {[%clk 0:01:37]}  Kc7 {[%clk 0:00:29]} 48. Rg7+ {[%clk 0:01:37]}  Kc8 {[%clk 0:00:28]} 49. Kc6 {[%clk 0:01:37]}  Kb8 {[%clk 0:00:22]} 50. Rg8+ {[%clk 0:01:35]}  Ka7 {[%clk 0:00:22]} 51. d6 {[%clk 0:01:36]}  g2 {[%clk 0:00:21]} 52. Kd7 {[%clk 0:01:32]}  Kb7 {[%clk 0:00:19]} 53. Rg3 {[%clk 0:01:31]}  Ka7 {[%clk 0:00:18]} 54. Ra3+ {[%clk 0:01:27]}  Kb7 {[%clk 0:00:18]} 55. Ra2 {[%clk 0:01:25]}  Kb6 {[%clk 0:00:16]} 56. Rd2 {[%clk 0:01:24]}  Kb7 {[%clk 0:00:10]} 57. Kd8 {[%clk 0:01:21]}  Kc6 {[%clk 0:00:10]} 58. d7 {[%clk 0:01:20]}  Kb7 {[%clk 0:00:10]} 59. Rb2+ {[%clk 0:01:19]}  Ka7 {[%clk 0:00:08]} 60. Re2 {[%clk 0:01:10]}  Kb7 {[%clk 0:00:07]} 61. Ke8 {[%clk 0:01:07]}  Re1 {[%clk 0:00:02]} 62. Rxe1 {[%clk 0:01:06]} 1-0


[Site "https://www.chess.com"]

[Event "Titled Tuesday Blitz May 25 2021"]
[White "Diaz Camallonga, Carles"]
[Black "Najdin, Danil"]
[WhiteFideId "22235256"]
[BlackFideId "4172426"]
[WhiteElo "2438"]
[BlackElo "2193"]
[Result "1-0"]
[Round "03"]
[TimeControl "180+1"]
[Date "2021.05.25"]
[WhiteClock "0:00:16"]
[BlackClock "0:00:01"]

1. e4 {[%clk 0:03:00]}  e5 {[%clk 0:03:00]} 2. Nf3 {[%clk 0:03:00]}  Nc6 {[%clk 0:03:00]} 3. Bb5 {[%clk 0:03:00]}  a6 {[%clk 0:03:01]} 4. Ba4 {[%clk 0:03:00]}  Nf6 {[%clk 0:03:01]} 5. d3 {[%clk 0:02:59]}  b5 {[%clk 0:03:01]} 6. Bb3 {[%clk 0:02:59]}  Bc5 {[%clk 0:03:02]} 7. Nc3 {[%clk 0:02:58]}  d6 {[%clk 0:03:02]} 8. Nd5 {[%clk 0:02:53]}  Nxd5 {[%clk 0:02:58]} 9. Bxd5 {[%clk 0:02:52]}  Bd7 {[%clk 0:02:55]} 10. O-O {[%clk 0:02:52]}  Rb8 {[%clk 0:02:55]} 11. c3 {[%clk 0:02:50]}  O-O {[%clk 0:02:37]} 12. Be3 {[%clk 0:02:45]}  Bxe3 {[%clk 0:02:30]} 13. fxe3 {[%clk 0:02:46]}  Ne7 {[%clk 0:02:30]} 14. Bb3 {[%clk 0:02:44]}  Kh8 {[%clk 0:02:23]} 15. Ng5 {[%clk 0:02:42]}  Nf5 {[%clk 0:02:04]} 16. Qh5 {[%clk 0:01:59]}  Nh6 {[%clk 0:02:03]} 17. Nxf7+ {[%clk 0:01:57]}  Nxf7 {[%clk 0:02:02]} 18. Bxf7 {[%clk 0:01:58]}  Qe7 {[%clk 0:01:48]} 19. Bg6 {[%clk 0:01:56]}  h6 {[%clk 0:01:48]} 20. Bf5 {[%clk 0:01:52]}  Be8 {[%clk 0:01:43]} 21. Qg4 {[%clk 0:01:51]}  c5 {[%clk 0:01:27]} 22. Be6 {[%clk 0:01:46]}  Bc6 {[%clk 0:01:20]} 23. Bd5 {[%clk 0:01:42]}  Bd7 {[%clk 0:01:19]} 24. Qg6 {[%clk 0:01:41]}  b4 {[%clk 0:01:12]} 25. cxb4 {[%clk 0:01:35]}  cxb4 {[%clk 0:01:05]} 26. Bc4 {[%clk 0:01:35]}  a5 {[%clk 0:01:03]} 27. h3 {[%clk 0:01:28]}  a4 {[%clk 0:01:02]} 28. Kh2 {[%clk 0:01:17]}  a3 {[%clk 0:01:02]} 29. bxa3 {[%clk 0:01:12]}  bxa3 {[%clk 0:01:02]} 30. Rab1 {[%clk 0:01:13]}  Rb2 {[%clk 0:00:31]} 31. Kg1 {[%clk 0:01:01]}  Rf6 {[%clk 0:00:26]} 32. Rxf6 {[%clk 0:00:56]}  Qxf6 {[%clk 0:00:27]} 33. Qxf6 {[%clk 0:00:53]}  gxf6 {[%clk 0:00:28]} 34. Rf1 {[%clk 0:00:47]}  Kg7 {[%clk 0:00:27]} 35. Rf3 {[%clk 0:00:47]}  Bb5 {[%clk 0:00:24]} 36. Rg3+ {[%clk 0:00:45]}  Kh7 {[%clk 0:00:24]} 37. Bg8+ {[%clk 0:00:31]}  Kh8 {[%clk 0:00:24]} 38. d4 {[%clk 0:00:31]}  Bd3 {[%clk 0:00:18]} 39. Bd5 {[%clk 0:00:26]}  Bb1 {[%clk 0:00:18]} 40. dxe5 {[%clk 0:00:17]}  dxe5 {[%clk 0:00:17]} 41. Rg8+ {[%clk 0:00:17]}  Kh7 {[%clk 0:00:17]} 42. Ra8 {[%clk 0:00:18]}  Bxa2 {[%clk 0:00:17]} 43. Rxa3 {[%clk 0:00:18]}  Bxd5 {[%clk 0:00:10]} 44. exd5 {[%clk 0:00:18]}  e4 {[%clk 0:00:10]} 45. Ra4 {[%clk 0:00:18]}  Rd2 {[%clk 0:00:09]} 46. Rxe4 {[%clk 0:00:17]}  Rxd5 {[%clk 0:00:08]} 47. Rg4 {[%clk 0:00:18]}  h5 {[%clk 0:00:06]} 48. Rg3 {[%clk 0:00:18]}  Rd2 {[%clk 0:00:05]} 49. Kh2 {[%clk 0:00:17]}  Re2 {[%clk 0:00:04]} 50. Rf3 {[%clk 0:00:17]}  Kg6 {[%clk 0:00:04]} 51. Kg3 {[%clk 0:00:17]}  Kg5 {[%clk 0:00:03]} 52. h4+ {[%clk 0:00:17]}  Kg6 {[%clk 0:00:04]} 53. Kh3 {[%clk 0:00:18]}  f5 {[%clk 0:00:01]} 54. Rg3+ {[%clk 0:00:18]}  Kf6 {[%clk 0:00:02]} 55. Kh2 {[%clk 0:00:17]}  Ke5 {[%clk 0:00:01]} 56. Rg5 {[%clk 0:00:16]}  Rxe3 {[%clk 0:00:01]} 57. Rxh5 {[%clk 0:00:16]} 1-0


[Site "https://www.chess.com"]

[Event "Titled Tuesday Blitz May 25 2021"]
[White "Erigaisi Arjun"]
[Black "Matinian, Nikita"]
[WhiteFideId "35009192"]
[BlackFideId "24129100"]
[WhiteElo "2609"]
[BlackElo "2410"]
[Result "1/2-1/2"]
[Round "03"]
[TimeControl "180+1"]
[Date "2021.05.25"]
[WhiteClock "0:00:07"]
[BlackClock "0:00:10"]

1. c4 {[%clk 0:03:00]}  e5 {[%clk 0:02:59]} 2. Nc3 {[%clk 0:03:01]}  Nc6 {[%clk 0:02:59]} 3. Nf3 {[%clk 0:03:01]}  g6 {[%clk 0:02:59]} 4. g3 {[%clk 0:03:00]}  Bg7 {[%clk 0:02:59]} 5. Bg2 {[%clk 0:03:00]}  f5 {[%clk 0:02:59]} 6. O-O {[%clk 0:03:00]}  Nf6 {[%clk 0:02:58]} 7. d3 {[%clk 0:02:57]}  h6 {[%clk 0:02:56]} 8. b4 {[%clk 0:02:45]}  d6 {[%clk 0:02:47]} 9. b5 {[%clk 0:02:37]}  Ne7 {[%clk 0:02:47]} 10. Qb3 {[%clk 0:02:37]}  Be6 {[%clk 0:02:46]} 11. a4 {[%clk 0:02:33]}  O-O {[%clk 0:02:45]} 12. Ba3 {[%clk 0:02:30]}  b6 {[%clk 0:02:44]} 13. a5 {[%clk 0:02:25]}  g5 {[%clk 0:02:41]} 14. Nd2 {[%clk 0:02:13]}  Rb8 {[%clk 0:02:38]} 15. axb6 {[%clk 0:02:07]}  axb6 {[%clk 0:02:39]} 16. Nd5 {[%clk 0:02:06]}  Nexd5 {[%clk 0:02:28]} 17. cxd5 {[%clk 0:02:07]}  Bf7 {[%clk 0:02:26]} 18. Rfc1 {[%clk 0:01:54]}  Re8 {[%clk 0:02:12]} 19. Bb2 {[%clk 0:01:49]}  Nd7 {[%clk 0:01:59]} 20. e3 {[%clk 0:01:28]}  Nc5 {[%clk 0:01:52]} 21. Qc3 {[%clk 0:01:24]}  Qd7 {[%clk 0:01:49]} 22. Qc4 {[%clk 0:01:19]}  Re7 {[%clk 0:01:35]} 23. Ra7 {[%clk 0:01:09]}  Rc8 {[%clk 0:01:24]} 24. e4 {[%clk 0:00:58]}  f4 {[%clk 0:01:19]} 25. f3 {[%clk 0:00:58]}  g4 {[%clk 0:01:14]} 26. gxf4 {[%clk 0:00:52]}  gxf3 {[%clk 0:01:09]} 27. Nxf3 {[%clk 0:00:53]}  exf4 {[%clk 0:01:08]} 28. Bxg7 {[%clk 0:00:54]}  Kxg7 {[%clk 0:01:09]} 29. Kh1 {[%clk 0:00:45]}  Kh7 {[%clk 0:01:06]} 30. Rg1 {[%clk 0:00:39]}  Rg8 {[%clk 0:01:05]} 31. Nd4 {[%clk 0:00:38]}  Bh5 {[%clk 0:00:58]} 32. Raa1 {[%clk 0:00:32]}  Qg4 {[%clk 0:00:51]} 33. Raf1 {[%clk 0:00:15]}  Reg7 {[%clk 0:00:46]} 34. h3 {[%clk 0:00:08]}  Qxg2+ {[%clk 0:00:25]} 35. Rxg2 {[%clk 0:00:09]}  Rxg2 {[%clk 0:00:25]} 36. Ne6 {[%clk 0:00:06]}  R2g3 {[%clk 0:00:22]} 37. Nxf4 {[%clk 0:00:05]}  Bf3+ {[%clk 0:00:22]} 38. Kh2 {[%clk 0:00:04]}  Rg2+ {[%clk 0:00:23]} 39. Nxg2 {[%clk 0:00:04]}  Rxg2+ {[%clk 0:00:23]} 40. Kh1 {[%clk 0:00:05]}  Rf2+ {[%clk 0:00:14]} 41. Kg1 {[%clk 0:00:05]}  Rg2+ {[%clk 0:00:10]} 42. Kh1 {[%clk 0:00:06]}  Rf2+ {[%clk 0:00:09]} 43. Kg1 {[%clk 0:00:06]}  Rg2+ {[%clk 0:00:10]} 44. Kh1 {[%clk 0:00:07]} 1/2-1/2


[Site "https://www.chess.com"]